bitfinex/quotes_BTCUSD_20250808
["timestamp","ask_amount","ask_price","bid_price","bid_amount"]
[1754632168219,1.52225076,116610.0,116600.0,0.004]
[1754632168447,0.88816014,116610.0,116600.0,0.004]
[1754632168621,1.20520545,116610.0,116600.0,0.004]
[1754632170381,1.52225076,116610.0,116600.0,0.004]
[1754632173023,1.20520545,116610.0,116600.0,0.004]
[1754632175727,0.88816014,116610.0,116600.0,0.004]
[1754632175873,1.20520545,116610.0,116600.0,0.004]
[1754632178440,1.52225076,116610.0,116600.0,0.004]
[1754632186733,0.98874334,116610.0,116600.0,0.004]
[1754632186938,1.11323334,116610.0,116600.0,0.004]
[1754632187327,1.08748434,116610.0,116600.0,0.004]
[1754632188636,1.11323134,116610.0,116600.0,0.004]
[1754632189185,1.08748434,116610.0,116600.0,0.004]
[1754632190438,1.09062434,116610.0,116600.0,0.004]
[1754632193542,1.09273434,116610.0,116600.0,0.004]
[1754632197094,1.09273434,116610.0,116600.0,0.0013734]
[1754632200860,1.09281278,116610.0,116600.0,0.0013734]
[1754632202138,1.09273434,116610.0,116600.0,0.00129496]
[1754632202385,0.64612903,116610.0,116600.0,0.00129496]
[1754632202606,0.77568903,116610.0,116600.0,0.00129496]
[1754632202826,1.09273434,116610.0,116600.0,0.00129496]
[1754632203238,0.77568903,116610.0,116600.0,0.00129496]
[1754632203449,1.09273434,116610.0,116600.0,0.00125496]
[1754632205191,1.09062434,116610.0,116600.0,0.00125496]
[1754632207078,1.09273434,116610.0,116600.0,0.00125496]
[1754632218295,1.09273434,116610.0,116600.0,0.00121496]
[1754632223360,1.09062434,116610.0,116600.0,0.00121496]
[1754632223517,1.09266434,116610.0,116600.0,0.00121496]
[1754632231213,0.77561903,116610.0,116600.0,0.00121496]
[1754632231513,1.09266434,116610.0,116600.0,0.00121496]
[1754632233352,1.09266434,116610.0,116600.0,0.00117496]
[1754632241721,0.77561903,116610.0,116600.0,0.00117496]
[1754632241914,1.09266434,116610.0,116600.0,0.00117496]
[1754632260427,0.77561903,116610.0,116600.0,0.00117496]
[1754632260777,1.09266434,116610.0,116600.0,0.00117496]
[1754632278196,1.09266434,116610.0,116600.0,0.00109496]
[1754632283615,0.96310434,116610.0,116600.0,0.00109496]
[1754632283784,1.09266434,116610.0,116600.0,0.00109496]
[1754632287936,0.77561903,116610.0,116600.0,0.00109496]
[1754632288197,1.09266434,116610.0,116600.0,0.00109496]
[1754632292044,0.77561903,116610.0,116600.0,0.00109496]
[1754632292323,1.09266434,116610.0,116600.0,0.00109496]
[1754632311878,1.11841134,116610.0,116600.0,0.00109496]
[1754632317243,1.43545665,116610.0,116600.0,0.00109496]
[1754632317456,1.52231876,116610.0,116600.0,0.00109496]
[1754632318984,1.20527345,116610.0,116600.0,0.00109496]
[1754632323009,1.52231876,116610.0,116600.0,0.00109496]
[1754632353674,1.20527345,116610.0,116600.0,0.00109496]
[1754632353894,0.88822814,116610.0,116600.0,0.00109496]
[1754632354104,1.20527345,116610.0,116600.0,0.00109496]
[1754632362615,1.52231876,116610.0,116600.0,0.00109496]
[1754632363522,1.20527345,116610.0,116600.0,0.00109496]
[1754632364605,0.88822814,116610.0,116600.0,0.00109496]
[1754632364886,1.20527345,116610.0,116600.0,0.00109496]
[1754632368990,1.52231876,116610.0,116600.0,0.00109496]
[1754632375336,1.20527345,116610.0,116600.0,0.00109496]
[1754632376659,1.52231876,116610.0,116600.0,0.00109496]
[1754632380505,1.52231876,116610.0,116600.0,0.00109496]
[1754632392471,0.88822814,116610.0,116600.0,0.00109496]
[1754632392680,1.52231876,116610.0,116600.0,0.00109496]
[1754632402067,1.39275876,116610.0,116600.0,0.00109496]
[1754632402398,1.52227876,116610.0,116600.0,0.00109496]
[1754632431764,1.39275876,116610.0,116600.0,0.00109496]
[1754632431968,1.52227876,116610.0,116600.0,0.00109496]
[1754632432172,1.20523345,116610.0,116600.0,0.00109496]
[1754632432347,1.52227876,116610.0,116600.0,0.00109496]
[1754632436059,0.88818814,116610.0,116600.0,0.00109496]
[1754632436329,1.52227876,116610.0,116600.0,0.00109496]
[1754632452608,1.43534665,116610.0,116600.0,0.00109496]
[1754632452800,1.40959965,116610.0,116600.0,0.00109496]
[1754632453001,1.41303265,116610.0,116600.0,0.00109496]
[1754632458890,1.81694007,116610.0,116600.0,0.00109496]
[1754632459120,1.49989476,116610.0,116600.0,0.00109496]
[1754632461509,1.81694007,116610.0,116600.0,0.00109496]
[1754632464516,1.49989476,116610.0,116600.0,0.00109496]
[1754632480311,1.49802067,116610.0,116600.0,0.00109496]
[1754632484792,0.86393005,116610.0,116600.0,0.00109496]
[1754632485024,1.49802067,116610.0,116600.0,0.00109496]
[1754632491937,1.49854067,116610.0,116600.0,0.00109496]
[1754632536288,0.86445005,116610.0,116600.0,0.00109496]
[1754632536488,1.49854067,116610.0,116600.0,0.00109496]
[1754632555392,1.36850067,116610.0,116600.0,0.00109496]
[1754632555595,1.18129536,116610.0,116600.0,0.00109496]
[1754632558627,0.5289756,116600.0,116590.0,0.00024]
[1754632558774,0.99665692,116600.0,116590.0,0.00024]
[1754632559406,1.02028692,116600.0,116590.0,0.00024]
[1754632560213,0.6824456,116600.0,116590.0,0.00024]
[1754632560439,0.97582091,116600.0,116590.0,0.00124]
[1754632561051,0.99945091,116600.0,116590.0,0.00124]
[1754632561725,1.00239091,116600.0,116590.0,0.00124]
[1754632563407,1.32154622,116600.0,116590.0,0.00124]
[1754632563613,1.40834047,116600.0,116590.0,0.00124]
[1754632570982,0.77424985,116600.0,116590.0,0.00124]
[1754632571206,1.40834047,116600.0,116590.0,0.00124]
[1754632576243,0.77424985,116600.0,116590.0,0.00124]
[1754632576482,1.40834047,116600.0,116590.0,0.00124]
[1754632578621,1.40838047,116600.0,116590.0,0.00124]
[1754632580848,0.77428985,116600.0,116590.0,0.00124]
[1754632581082,1.40838047,116600.0,116590.0,0.00124]
[1754632581277,1.32158622,116600.0,116590.0,0.00124]
[1754632591515,0.6874956,116600.0,116590.0,0.00124]
[1754632591733,1.32158622,116600.0,116590.0,0.00124]
[1754632592089,0.6874956,116600.0,116590.0,0.00124]
[1754632592295,1.32158622,116600.0,116590.0,0.00124]
[1754632592441,1.40838047,116600.0,116590.0,0.00124]
[1754632593813,1.27854047,116600.0,116590.0,0.00124]
[1754632594023,1.40850047,116600.0,116590.0,0.00124]
[1754632601787,1.40846047,116600.0,116590.0,0.00124]
[1754632609061,1.43421147,116600.0,116590.0,0.00124]
[1754632627352,0.80012085,116600.0,116590.0,0.00124]
[1754632627557,1.43421147,116600.0,116590.0,0.00124]
[1754632627785,0.80012085,116600.0,116590.0,0.00124]
[1754632628101,1.43421147,116600.0,116590.0,0.00124]
[1754632641751,0.01744902,116580.0,116570.0,0.32562384]
[1754632641968,0.18900503,116580.0,116570.0,0.5229216]
[1754632642172,0.14728902,116580.0,116570.0,0.5229216]
[1754632642654,0.31884503,116580.0,116570.0,0.5229216]
[1754632644306,0.31884503,116580.0,116570.0,0.20587629]
[1754632644530,0.34276503,116580.0,116570.0,0.5229216]
[1754632645749,0.34276503,116580.0,116570.0,0.4971716]
[1754632647947,0.17120902,116580.0,116570.0,0.4971716]
[1754632648211,0.34276503,116580.0,116570.0,0.6269716]
[1754632651646,0.34583503,116580.0,116570.0,0.6269716]
[1754632658221,0.21599503,116580.0,116570.0,0.6269716]
[1754632661490,0.21292503,116580.0,116570.0,0.6269716]
[1754632661856,0.04136902,116580.0,116570.0,0.6269716]
[1754632662487,0.21292503,116580.0,116570.0,0.30992629]
[1754632662690,0.21292503,116580.0,116570.0,0.6269716]
[1754632663921,0.04136902,116580.0,116570.0,0.6269716]
[1754632664188,0.04458902,116580.0,116570.0,0.6269716]
[1754632667762,0.01744902,116580.0,116570.0,0.6269716]
[1754632668307,0.04206902,116580.0,116570.0,0.6269716]
[1754632668714,0.04528902,116580.0,116570.0,0.4971716]
[1754632668964,0.04528902,116580.0,116570.0,0.6270116]
[1754632670302,0.04528902,116580.0,116570.0,0.4971716]
[1754632673385,0.21900503,116580.0,116570.0,0.4971716]
[1754632674671,0.04744902,116580.0,116570.0,0.4971716]
[1754632684074,0.04744902,116580.0,116570.0,0.18012629]
[1754632684217,0.04744902,116580.0,116570.0,0.4971716]
[1754632687173,0.04744902,116580.0,116570.0,0.18012629]
[1754632687369,0.04744902,116580.0,116570.0,0.4971716]
[1754632690510,0.04528902,116580.0,116570.0,0.4971716]
[1754632691579,0.04206902,116580.0,116570.0,0.4971716]
[1754632692428,0.04528902,116580.0,116570.0,0.4971716]
[1754632697939,0.04727902,116580.0,116570.0,0.4971716]
[1754632699525,0.21883503,116580.0,116570.0,0.4971716]
[1754632700257,0.21883503,116580.0,116570.0,0.18012629]
[1754632700609,0.21883503,116580.0,116570.0,0.4971716]
[1754632709001,0.21883503,116580.0,116570.0,0.30980629]
[1754632709170,0.21883503,116580.0,116570.0,0.6268516]
[1754632710375,0.21883503,116580.0,116570.0,0.30980629]
[1754632710571,0.21883503,116580.0,116570.0,0.6268516]
[1754632714791,0.21883503,116580.0,116570.0,0.30980629]
[1754632714993,0.21883503,116580.0,116570.0,0.6268516]
[1754632726402,0.21883503,116580.0,116570.0,0.18012629]
[1754632726667,0.21883503,116580.0,116570.0,0.4971716]
[1754632727083,0.21883503,116580.0,116570.0,0.18012629]
[1754632727290,0.21883503,116580.0,116570.0,0.4971716]
[1754632727636,0.21883503,116580.0,116570.0,0.6268516]
[1754632730802,0.21883503,116580.0,116570.0,0.30980629]
[1754632731109,0.21883503,116580.0,116570.0,0.6268516]
[1754632732615,0.21883503,116580.0,116570.0,0.30980629]
[1754632732897,0.21883503,116580.0,116560.0,0.81448679]
[1754632733109,0.02634,116570.0,116560.0,0.71402359]
[1754632733268,0.02831,116570.0,116560.0,0.71402359]
[1754632733475,0.02831,116570.0,116560.0,1.0310689]
[1754632733875,0.02634,116570.0,116560.0,1.0310689]
[1754632734104,0.02634,116570.0,116560.0,1.0320689]
[1754632734297,0.0234,116570.0,116560.0,1.34911421]
[1754632734496,4.734e-05,116570.0,116560.0,1.35011421]
[1754632734655,4.734e-05,116570.0,116560.0,1.35161421]
[1754632734861,4.734e-05,116570.0,116560.0,1.0330689]
[1754632735058,0.02344734,116570.0,116560.0,1.0330689]
[1754632735518,0.02835734,116570.0,116560.0,1.0320689]
[1754632735910,0.02835734,116570.0,116560.0,1.0330689]
[1754632736451,0.02835734,116570.0,116560.0,0.71602359]
[1754632736718,0.02835734,116570.0,116560.0,1.0330689]
[1754632737407,0.02638734,116570.0,116560.0,1.0330689]
[1754632737646,0.02344734,116570.0,116560.0,1.0330689]
[1754632738593,0.19795807,116570.0,116560.0,0.71602359]
[1754632738814,0.19992807,116570.0,116560.0,0.71602359]
[1754632738999,0.19992807,116570.0,116560.0,1.0330689]
[1754632739248,0.02835734,116570.0,116560.0,0.9033489]
[1754632739454,0.02835734,116570.0,116560.0,1.0330289]
[1754632739862,0.19992807,116570.0,116560.0,1.0330289]
[1754632740224,0.02835734,116570.0,116560.0,0.9033489]
[1754632740433,0.02835734,116570.0,116560.0,1.0330289]
[1754632741016,0.19992807,116570.0,116560.0,0.71598359]
[1754632741219,0.19992807,116570.0,116560.0,0.58630359]
[1754632741438,1.12122317,116570.0,116560.0,0.3022]
[1754632742115,1.12122317,116570.0,116560.0,0.0022]
[1754632742269,1.12122317,116570.0,116560.0,0.0002]
[1754632742467,1.46122317,116570.0,116560.0,0.0002]
[1754632742715,1.46122317,116570.0,116560.0,0.0022]
[1754632742915,1.46122317,116570.0,116560.0,0.0012]
[1754632743200,1.57384328,116570.0,116560.0,0.0002]
[1754632743701,1.57484328,116570.0,116560.0,0.0002]
[1754632743918,1.89188859,116570.0,116560.0,1e-08]
[1754632744102,1.57484328,116570.0,116560.0,1e-08]
[1754632744319,1.89288859,116570.0,116560.0,1e-08]
[1754632744503,1.57584328,116570.0,116560.0,1e-08]
[1754632744866,1.57484328,116570.0,116560.0,1e-08]
[1754632745072,0.94075266,116570.0,116560.0,1e-08]
[1754632745277,1.57384328,116570.0,116560.0,1e-08]
[1754632745477,1.57484328,116570.0,116560.0,1e-08]
[1754632746903,1.57488328,116570.0,116560.0,1e-08]
[1754632747808,0.74159504,116570.0,116560.0,1e-08]
[1754632748018,1.18836035,116570.0,116560.0,1e-08]
[1754632748427,0.87131504,116570.0,116560.0,1e-08]
[1754632748629,1.18836035,116570.0,116560.0,1e-08]
[1754632752367,0.87131504,116570.0,116560.0,1e-08]
[1754632752571,1.18836035,116570.0,116560.0,1e-08]
[1754632756240,1.05864035,116570.0,116560.0,1e-08]
[1754632756446,1.18844035,116570.0,116560.0,1e-08]
[1754632756850,0.97177824,116570.0,116560.0,1e-08]
[1754632757052,1.10157824,116570.0,116560.0,1e-08]
[1754632758046,0.65473293,116570.0,116560.0,1e-08]
[1754632758325,1.07586024,116570.0,116560.0,1e-08]
[1754632762321,0.94602024,116570.0,116560.0,1e-08]
[1754632762619,1.07582024,116570.0,116560.0,0.17158545]
[1754632762821,0.94602024,116570.0,116560.0,0.17158545]
[1754632763119,1.07582024,116570.0,116560.0,1e-08]
[1754632765056,1.07582024,116570.0,116560.0,0.17158545]
[1754632765878,0.62700493,116570.0,116560.0,0.17158545]
[1754632766033,0.51165636,116570.0,116560.0,0.48863076]
[1754632766245,0.51165636,116570.0,116560.0,0.17158545]
[1754632766437,0.17165636,116570.0,116560.0,0.17158545]
[1754632766877,0.17065636,116570.0,116560.0,0.17158545]
[1754632767285,0.17065636,116570.0,116560.0,0.17258545]
[1754632767512,0.38505086,116570.0,116560.0,0.17258545]
[1754632767670,0.14725636,116570.0,116560.0,0.17358545]
[1754632767869,0.14725636,116570.0,116560.0,0.17573026]
[1754632768070,0.14725636,116570.0,116560.0,0.17358545]
[1754632768328,0.14725636,116570.0,116560.0,0.17573026]
[1754632768531,0.17123636,116570.0,116560.0,0.17573026]
[1754632768705,0.17123636,116570.0,116560.0,0.17358545]
[1754632769129,0.6598524,116570.0,116560.0,0.17573026]
[1754632769379,0.6598524,116570.0,116560.0,0.17358545]
[1754632769536,0.6628324,116570.0,116560.0,0.17358545]
[1754632770334,0.6648224,116570.0,116560.0,0.17358545]
[1754632770876,0.34781709,116570.0,116560.0,0.17358545]
[1754632771046,0.6648624,116570.0,116560.0,0.17358545]
[1754632772511,0.6648624,116570.0,116560.0,0.00200001]
[1754632775391,0.34781709,116570.0,116560.0,0.00200001]
[1754632775593,0.6648624,116570.0,116560.0,0.00200001]
[1754632776235,0.71852877,116570.0,116560.0,0.00200001]
[1754632777561,0.6648624,116570.0,116560.0,0.00200001]
[1754632778680,0.21801709,116570.0,116560.0,0.17358545]
[1754632778832,0.6648624,116570.0,116560.0,0.17358545]
[1754632779284,0.6648624,116570.0,116560.0,0.00200001]
[1754632780784,0.34781709,116570.0,116560.0,0.00200001]
[1754632781048,0.6648624,116570.0,116560.0,0.00200001]
[1754632786496,0.75165665,116570.0,116560.0,0.00200001]
[1754632788405,0.75157665,116570.0,116560.0,0.00200001]
[1754632789100,0.62185665,116570.0,116560.0,0.00200001]
[1754632789233,0.75157665,116570.0,116560.0,0.00200001]
[1754632795217,0.75157665,116570.0,116560.0,0.17358545]
[1754632796418,0.75157665,116570.0,116560.0,0.00200001]
[1754632797674,0.34759793,116570.0,116560.0,0.00200001]
[1754632797946,0.66464324,116570.0,116560.0,0.00200001]
[1754632800759,1.07412086,116570.0,116560.0,0.00200001]
[1754632800983,1.39116617,116570.0,116560.0,0.00200001]
[1754632801910,1.16098297,116570.0,116560.0,0.00200001]
[1754632802084,0.93073191,116570.0,116560.0,0.00200001]
[1754632802287,1.49534491,116570.0,116560.0,0.00200001]
[1754632802523,1.1782996,116570.0,116560.0,0.00200001]
[1754632802721,1.49534491,116570.0,116560.0,0.00200001]
[1754632803678,1.49534491,116570.0,116560.0,0.00100001]
[1754632804051,1.49534491,116570.0,116560.0,1e-08]
[1754632804498,1.49634491,116570.0,116560.0,1e-08]
[1754632805278,1.83915122,116570.0,116560.0,1e-08]
[1754632805885,0.82315453,116540.0,116530.0,0.00040571]
[1754632806093,0.95507453,116540.0,116530.0,0.00040571]
[1754632806296,0.98153453,116540.0,116530.0,0.00040571]
[1754632806474,1.05935686,116540.0,116530.0,0.00040571]
[1754632806678,0.18907864,116530.0,116510.0,0.20597754]
[1754632806899,0.04088902,116520.0,116510.0,0.60988496]
[1754632807362,0.21771337,116520.0,116510.0,0.29283965]
[1754632807534,0.04606902,116520.0,116510.0,0.29283965]
[1754632807741,0.04606902,116520.0,116510.0,0.29483965]
[1754632807946,0.04390902,116520.0,116510.0,0.29531358]
[1754632809124,0.04390902,116520.0,116510.0,0.29331358]
[1754632809328,0.04606902,116520.0,116510.0,0.29331358]
[1754632809528,0.04390902,116520.0,116510.0,0.61235889]
[1754632810183,0.04088902,116520.0,116510.0,0.61235889]
[1754632810636,0.01744902,116520.0,116510.0,0.61035889]
[1754632810839,0.01744902,116520.0,116510.0,1.0799042]
[1754632810990,0.01744902,116520.0,116510.0,0.76285889]
[1754632811229,0.01744902,116520.0,116510.0,0.76385889]
[1754632813052,0.01744902,116520.0,116510.0,0.76285889]
[1754632816503,0.04059902,116520.0,116510.0,0.89123889]
[1754632819172,0.04565902,116520.0,116510.0,0.89123889]
[1754632819509,0.04367902,116520.0,116510.0,0.89123889]
[1754632820107,0.04059902,116520.0,116510.0,0.89123889]
[1754632822637,0.04367902,116520.0,116510.0,0.89123889]
[1754632824151,0.04565902,116520.0,116510.0,0.89123889]
[1754632824283,0.04565902,116520.0,116510.0,0.57419358]
[1754632824484,0.04565902,116520.0,116510.0,0.89123889]
[1754632827038,0.04565902,116520.0,116510.0,0.57419358]
[1754632827355,0.21730337,116520.0,116510.0,0.57419358]
[1754632827894,0.21730337,116520.0,116510.0,0.89123889]
[1754632828141,0.21730337,116520.0,116510.0,0.57419358]
[1754632828347,0.21730337,116520.0,116510.0,0.89123889]
[1754632828939,0.04565902,116520.0,116510.0,0.57419358]
[1754632829524,0.21730337,116520.0,116510.0,0.89123889]
[1754632829989,0.04565902,116520.0,116510.0,0.89123889]
[1754632830182,0.21730337,116520.0,116510.0,0.57419358]
[1754632830494,0.24230407,116520.0,116510.0,0.48733147]
[1754632830664,0.24230407,116520.0,116510.0,0.17723593]
[1754632830665,0.68914938,116520.0,116510.0,0.17723593]
[1754632831100,1.00619469,116520.0,116510.0,0.02723593]
[1754632831296,1.00619469,116520.0,116510.0,0.00147393]
[1754632831530,1.00619469,116520.0,116510.0,0.00047393]
[1754632831869,1.00819469,116520.0,116510.0,0.00047393]
[1754632832191,1.00819469,116520.0,116510.0,0.02623993]
[1754632832797,0.69243847,116520.0,116510.0,0.02623993]
[1754632833128,1.01077287,116520.0,116510.0,0.02623993]
[1754632833297,1.03243847,116520.0,116510.0,0.00047393]
[1754632834555,0.19363417,116510.0,116500.0,0.259241]
[1754632834890,0.54017857,116510.0,116500.0,0.43091481]
[1754632835119,0.22184417,116510.0,116500.0,0.43091481]
[1754632835278,0.22184417,116510.0,116500.0,0.259241]
[1754632836019,0.22184417,116510.0,116500.0,0.260241]
[1754632836193,0.54017857,116510.0,116500.0,0.260241]
[1754632837575,0.22184417,116510.0,116500.0,0.43191481]
[1754632837748,0.35160417,116510.0,116500.0,0.43191481]
[1754632837980,0.42750051,116510.0,116500.0,0.43191481]
[1754632838193,0.35160417,116510.0,116500.0,0.43191481]
[1754632841123,0.35164417,116510.0,116500.0,0.43191481]
[1754632842134,0.17800509,116510.0,116500.0,0.43191481]
[1754632842344,0.04512509,116510.0,116500.0,0.56171481]
[1754632842895,0.02197509,116510.0,116500.0,0.88154921]
[1754632843038,0.02197509,116510.0,116500.0,0.56321481]
[1754632843252,0.02197509,116510.0,116500.0,0.56171481]
[1754632844628,0.04601509,116510.0,116500.0,0.56171481]
[1754632845482,0.04601509,116510.0,116500.0,0.55671481]
[1754632845688,0.03535976,116510.0,116500.0,0.55671481]
[1754632851806,0.01131976,116510.0,116500.0,0.87654921]
[1754632852223,0.01131976,116510.0,116500.0,0.55821481]
[1754632852445,0.01131976,116510.0,116500.0,0.64507692]
[1754632854016,0.01131976,116510.0,116500.0,0.64357692]
[1754632854480,0.03535976,116510.0,116500.0,0.64357692]
[1754632856758,0.03535976,116510.0,116500.0,0.96185067]
[1754632860273,0.01131976,116510.0,116500.0,0.96185067]
[1754632860508,0.00047419,116520.0,116510.0,0.32165908]
[1754632860713,0.00047419,116520.0,116510.0,1.04656869]
[1754632860909,0.00047419,116520.0,116510.0,0.72829494]
[1754632861523,0.01792321,116520.0,116510.0,0.72829494]
[1754632861740,0.01892321,116520.0,116510.0,0.72829494]
[1754632862177,0.01892321,116520.0,116510.0,0.85837494]
[1754632862777,0.01892321,116520.0,116510.0,0.85825445]
[1754632863129,0.01792321,116520.0,116510.0,0.85825445]
[1754632863621,0.01792321,116520.0,116510.0,0.86025445]
[1754632864325,0.01792321,116520.0,116510.0,1.12305445]
[1754632864501,0.01792321,116520.0,116510.0,1.14709445]
[1754632864705,0.01792321,116520.0,116510.0,1.14559445]
[1754632864883,0.01792321,116520.0,116510.0,1.14709445]
[1754632865082,0.01792321,116520.0,116510.0,1.14559445]
[1754632870348,0.04196321,116520.0,116510.0,1.14559445]
[1754632873433,0.04196321,116520.0,116510.0,0.82744119]
[1754632873638,0.04196321,116520.0,116510.0,1.14559445]
[1754632874573,0.04196321,116520.0,116510.0,0.82744119]
[1754632874788,0.04196321,116520.0,116510.0,1.14559445]
[1754632874993,0.04495321,116520.0,116510.0,1.14559445]
[1754632877187,0.04196321,116520.0,116510.0,1.14559445]
[1754632877395,0.01792321,116520.0,116510.0,1.14559445]
[1754632877620,0.01792321,116520.0,116510.0,1.14709445]
[1754632878140,0.01792321,116520.0,116510.0,1.14559445]
[1754632878761,0.04271321,116520.0,116510.0,1.14559445]
[1754632879140,0.04570321,116520.0,116510.0,1.14559445]
[1754632884720,0.04570321,116520.0,116510.0,1.14561192]
[1754632885751,0.04780321,116520.0,116510.0,0.82744119]
[1754632886149,0.04780321,116520.0,116510.0,1.14561192]
[1754632886727,0.04570321,116520.0,116510.0,1.14561192]
[1754632890414,0.04780321,116520.0,116510.0,1.14561192]
[1754632892667,0.04780321,116520.0,116510.0,0.82744119]
[1754632892817,0.36597394,116520.0,116510.0,0.69736119]
[1754632893230,0.04780321,116520.0,116510.0,0.69736119]
[1754632893794,0.04780321,116520.0,116510.0,0.43456119]
[1754632894800,0.04780321,116520.0,116510.0,0.43256119]
[1754632895010,0.04780321,116520.0,116510.0,0.56256119]
[1754632898514,0.04780321,116520.0,116510.0,0.88073192]
[1754632901654,0.04780321,116520.0,116510.0,0.56256119]
[1754632902233,0.04780321,116520.0,116510.0,0.88073192]
[1754632902436,0.04780321,116520.0,116510.0,0.56256119]
[1754632903258,0.04780321,116520.0,116510.0,0.88073192]
[1754632903764,0.04780321,116520.0,116510.0,0.56256119]
[1754632904376,0.36597394,116520.0,116510.0,0.56256119]
[1754632905642,0.36697394,116520.0,116510.0,0.56256119]
[1754632905898,0.36797394,116520.0,116510.0,0.56256119]
[1754632907739,0.04980321,116520.0,116510.0,0.56256119]
[1754632908233,0.36797394,116520.0,116510.0,0.56256119]
[1754632910318,0.04980321,116520.0,116510.0,0.56256119]
[1754632911353,0.04980321,116520.0,116510.0,0.88073192]
[1754632912453,0.04980321,116520.0,116510.0,0.56256119]
[1754632912659,0.04980321,116520.0,116510.0,0.88073192]
[1754632913370,0.04980321,116520.0,116510.0,0.56256119]
[1754632913605,0.04980321,116520.0,116510.0,0.88073192]
[1754632915147,0.04980321,116520.0,116510.0,0.56256119]
[1754632915665,0.04968321,116520.0,116510.0,0.56256119]
[1754632918504,0.04968321,116520.0,116510.0,0.88073192]
[1754632920258,0.04758321,116520.0,116510.0,0.88073192]
[1754632924567,0.04969321,116520.0,116510.0,0.88073192]
[1754632927313,0.36786394,116520.0,116510.0,0.43256119]
[1754632927527,0.04969321,116520.0,116510.0,0.43256119]
[1754632927773,0.36786394,116520.0,116510.0,0.56252119]
[1754632927997,0.04969321,116520.0,116510.0,0.56252119]
[1754632928204,0.04969321,116520.0,116510.0,0.88069192]
[1754632929773,0.04969321,116520.0,116510.0,0.75073192]
[1754632931704,0.04969321,116520.0,116510.0,0.88085192]
[1754632933085,0.04758321,116520.0,116510.0,0.88085192]
[1754632934604,0.04758321,116520.0,116510.0,0.56268119]
[1754632934817,0.04758321,116520.0,116510.0,0.88085192]
[1754632937862,0.04971321,116520.0,116510.0,0.88085192]
[1754632940929,0.04971321,116520.0,116510.0,0.56268119]
[1754632941138,0.04971321,116520.0,116510.0,0.88085192]
[1754632941375,0.04758321,116520.0,116510.0,0.88085192]
[1754632941591,0.04459321,116520.0,116510.0,0.88085192]
[1754632941809,0.04775321,116520.0,116510.0,0.88085192]
[1754632942767,0.04775321,116520.0,116510.0,0.88072596]
[1754632945260,0.04459321,116520.0,116510.0,0.88072596]
[1754632945868,0.04775321,116520.0,116510.0,0.88072596]
[1754632950603,0.04775321,116520.0,116510.0,0.8806]
[1754632956054,0.01980321,116520.0,116510.0,0.8806]
[1754632956506,0.04454321,116520.0,116510.0,0.8806]
[1754632956942,0.04770321,116520.0,116510.0,0.88047404]
[1754632957956,0.04670321,116520.0,116510.0,0.88047404]
[1754632958802,0.04670321,116520.0,116510.0,1.14327404]
[1754632959209,0.04354321,116520.0,116510.0,1.14327404]
[1754632959621,0.04254321,116520.0,116510.0,1.14327404]
[1754632960756,0.04570321,116520.0,116510.0,1.14327404]
[1754632963231,0.04570321,116520.0,116510.0,0.82510331]
[1754632963434,0.04570321,116520.0,116510.0,1.14327404]
[1754632963797,0.04570321,116520.0,116510.0,1.14314808]
[1754632967683,0.04254321,116520.0,116510.0,1.14314808]
[1754632970904,0.04564321,116520.0,116510.0,1.14314808]
[1754632971599,0.04564321,116520.0,116510.0,1.14302212]
[1754632974813,0.04564321,116520.0,116510.0,0.82485139]
[1754632975097,0.04564321,116520.0,116510.0,1.14302212]
[1754632977710,0.04564321,116520.0,116510.0,1.14289616]
[1754632978570,0.04564321,116520.0,116510.0,0.82472543]
[1754632978852,0.04766321,116520.0,116510.0,1.14289616]
[1754632979749,0.04766321,116520.0,116510.0,1.06289616]
[1754632982422,0.04766321,116520.0,116510.0,0.74472543]
[1754632982663,0.04766321,116520.0,116510.0,1.06289616]
[1754632984838,0.04766321,116520.0,116510.0,1.0627702]
[1754632991275,0.04766321,116520.0,116510.0,0.74459947]
[1754632991470,0.04766321,116520.0,116510.0,1.0627702]
[1754632991921,0.04564321,116520.0,116510.0,0.74447351]
[1754632992063,0.04564321,116520.0,116510.0,1.06264424]
[1754632996726,0.04254321,116520.0,116510.0,1.06264424]
[1754632997329,0.04550321,116520.0,116510.0,1.06264424]
[1754632998362,0.01780321,116520.0,116510.0,1.06264424]
[1754632998502,0.01780321,116520.0,116510.0,1.06414424]
[1754632998696,0.01780321,116520.0,116510.0,1.06401828]
[1754632999127,0.01780321,116520.0,116510.0,1.06251828]
[1754633005095,0.04269321,116520.0,116510.0,1.06251828]
[1754633005854,0.04269321,116520.0,116510.0,1.06239232]
[1754633010186,0.01780321,116520.0,116510.0,1.06239232]
[1754633010396,0.02885221,116520.0,116510.0,1.06239232]
[1754633010816,0.05374221,116520.0,116510.0,1.06239232]
[1754633011762,0.02885221,116520.0,116510.0,1.06239232]
[1754633012486,0.05374221,116520.0,116510.0,1.06239232]
[1754633013545,0.05374221,116520.0,116510.0,1.06226636]
[1754633017307,0.05670221,116520.0,116510.0,1.06226636]
[1754633019777,0.05670221,116520.0,116510.0,1.0621404]
[1754633022472,0.05670221,116520.0,116510.0,0.74396967]
[1754633022668,0.05670221,116520.0,116510.0,1.0621404]
[1754633028644,0.05670221,116520.0,116510.0,1.06201444]
[1754633029876,0.05670221,116520.0,116510.0,0.74384371]
[1754633030132,0.05866221,116520.0,116510.0,1.06201444]
[1754633033655,0.05866221,116520.0,116510.0,1.06188848]
[1754633040753,0.05866221,116520.0,116510.0,1.06176252]
[1754633044822,0.05866221,116520.0,116510.0,0.74359179]
[1754633045031,0.05866221,116520.0,116510.0,0.61347179]
[1754633045467,0.05866221,116520.0,116510.0,0.93164252]
[1754633046273,0.05866221,116520.0,116510.0,0.66884252]
[1754633047413,0.05866221,116520.0,116510.0,0.35067179]
[1754633048896,0.05866221,116520.0,116510.0,0.66884252]
[1754633053104,0.05866221,116520.0,116510.0,0.79864252]
[1754633054654,0.05866221,116520.0,116510.0,0.79851656]
[1754633058898,0.05866221,116520.0,116510.0,0.48034583]
[1754633059094,0.05866221,116520.0,116510.0,0.35054583]
[1754633061141,0.05866221,116520.0,116510.0,0.48034583]
[1754633061414,0.05866221,116520.0,116510.0,0.79851656]
[1754633062266,0.05866221,116520.0,116510.0,0.7983906]
[1754633065943,0.05866221,116520.0,116510.0,0.48021987]
[1754633066145,0.67827729,116520.0,116510.0,0.20041987]
[1754633066358,0.4249379,116520.0,116510.0,0.20041987]
[1754633066546,0.4249379,116520.0,116510.0,0.5185906]
[1754633066747,0.4249379,116520.0,116510.0,0.20041987]
[1754633067204,0.36010656,116520.0,116510.0,0.20041987]
[1754633067555,0.36210656,116520.0,116510.0,0.20041987]
[1754633067755,0.36210656,116520.0,116510.0,0.11355776]
[1754633068886,0.36210656,116520.0,116510.0,0.1134318]
[1754633069064,0.68027729,116520.0,116510.0,0.1134318]
[1754633072438,0.76707154,116520.0,116510.0,0.1134318]
[1754633072867,0.68027729,116520.0,116510.0,0.1134318]
[1754633073206,0.19046221,116520.0,116510.0,0.1134318]
[1754633073415,0.50863294,116520.0,116510.0,0.1134318]